[Event "German Bundesliga 2024-25"]
[Site "Germany"]
[Date "2025.01.12"]
[Round "6.4"]
[White "Andersen, Mads"]
[Black "Efimenko, Zahar"]
[Result "0-1"]
[Annotator "TA"]
[ECO "C54"]
[WhiteElo "2595"]
[BlackElo "2567"]
[PlyCount "120"]
[EventDate "2024.09.27"]
[EventType "team-tourn"]
[EventCountry "GER"]
[SourceTitle "playchess.com"]
[Source "ChessBase"]
[SourceQuality "1"]
[WhiteTeam "SG Solingen"]
[BlackTeam "Werder Bremen"]
[TimeControl "40/5400+30:1800+30"]

{[%evp 14,120,25,12,17,0,11,15,3,0,0,0,1,0,0,0,5,0,0,0,0,8,0,5,26,20,14,0,0,0,9,0,0,0,0,0,14,-12,0,-20,0,0,0,-91,-83,-195,-198,-197,0,0,0,-186,-185,-185,-188,-194,-195,-208,-134,-440,-145,-139,-131,-245,-122,-121,-118,-139,-102,-117,-104,-126,-103,-174,-162,-174,-179,-170,-134,-301,-302,-285,-336,-239,-213,-313,-313,-5097,-2327,-2466,-2014,-5173,-4850,-2623,-2244,-5084,-5084,-2769,-2144,-2572,-1602,-5735,-3750,-29958,-12110,-29969,-29970,-7425,-6536]} 1. e4 {[%emt 0:08:38]} e5 {[%emt 0:00:41]} 2. Nf3 {[%emt 0:00:04]} Nc6 {[%emt 0:00:06]} 3. Bc4 {[%emt 0:00:04]} Bc5 {[%emt 0:01:00]} 4. c3 {[%emt 0:00:08]} Nf6 {[%emt 0:01:35]} 5. d3 {[%emt 0:00:08][%cal Bd2d3,Bd3d4][%mdl 32]} d6 {[%emt 0:01:23]} 6. O-O {[%emt 0:00:38]} h6 {[%emt 0:02:11]} 7. Re1 {[%emt 0:00:20]} O-O {[%emt 0:01:46]} 8. h3 {[%emt 0:00:35]} a5 {[%emt 0:03:39]} 9. d4 {[%emt 0:01:10]} Bb6 {[%emt 0:07:26][%cal Of6e4]} 10. Bb3 {[%emt 0:00:41]} Re8 {[%emt 0:05:38]} 11. Bc2 {[%emt 0:01:03]} exd4 {[%emt 0:15:35]} 12. cxd4 {[%emt 0:01:10]} Nb4 {[%emt 0:00:06]} 13. Nc3 {[%emt 0:00:16]} Nxc2 {[%emt 0:00:26]} 14. Qxc2 {[%emt 0:00:03]} c6 {[%emt 0:04:21]} 15. Re2 {[%emt 0:01:46]} Be6 {[%emt 0:05:35]} 16. Be3 {[%emt 0:02:06]} d5 {[%emt 0:11:00]} 17. e5 {[%emt 0:02:04]} Nd7 {[%emt 0:00:05]} 18. Na4 {[%emt 0:17:26]} Bc7 {[%emt 0:02:26]} 19. Nh2 {[%emt 0:01:55]} b5 {[%emt 0:06:08]} 20. Nc5 {[%emt 0:06:44]} Nxc5 {[%emt 0:00:56]} 21. Qxc5 {[%emt 0:00:03]} Rc8 {[%emt 0:00:38]} 22. Qxc6 {[%emt 0:08:57]} Bxe5 $1 {[%emt 0:00:26]} 23. Qxb5 {[%emt 0:00:05]} Bd6 {[%emt 0:00:17]} 24. Nf3 {[%emt 0:02:02]} Bf5 {[%emt 0:02:49]} 25. Rc1 {[%emt 0:11:24]} (25. Qxd5 $2 Bh2+ 26. Kxh2 Qxd5 $19) 25... Rb8 {[%emt 0:01:55]} 26. Qa4 $1 {[%emt 0:01:12]} (26. Qxd5 $2 Bh2+ 27. Kxh2 Qxd5 $19) 26... f6 {[%emt 0:05:56]} 27. Qd1 {[%emt 0:11:42]} Qd7 {[%emt 0:00:25][%cal Of5h3]} 28. b3 {[%emt 0:04:05]} (28. Ne1 $11) 28... Bxh3 $1 $17 {[%emt 0:03:48] Black is much more active.} 29. gxh3 {[%emt 0:14:31]} (29. Ne1 $17) 29... Qxh3 $19 {[%emt 0:00:08][%cal Oe8e4]} 30. Bd2 {[%emt 0:00:01]} Qg4+ {[%emt 0:05:32]} 31. Kf1 {[%emt 0:00:04] and Ng1 should not be overlooked} Qh3+ $40 {[%emt 0:00:06][%mdl 128] Black mounts an attack.} 32. Kg1 {[%emt 0:00:05] [#]} Re4 $1 {[%emt 0:00:57]} 33. Rxe4 {[%emt 0:00:08]} dxe4 {[%emt 0:00:03]} 34. Ne5 {[%emt 0:03:08]} (34. Ne1 Bh2+ 35. Kh1 Bg3+ 36. Kg1 Qh2+ 37. Kf1 Qxf2#) 34... fxe5 {[%emt 0:00:58]} 35. Rc3 {[%emt 0:00:01]} Qe6 {[%emt 0:02:44]} 36. Be3 $2 {[%emt 0:00:06][%mdl 8192]} (36. d5 $17 {is more resistant.} Qxd5 37. Qc2) 36... Rd8 $2 {[%emt 0:07:54]} (36... exd4 $19 37. Qxd4 Qg4+ 38. Kf1 Qh3+ 39. Ke2 Qf3+ 40. Kf1 Bb4) 37. Rc4 $17 {[%emt 0:01:07]} Be7 {[%emt 0:00:43]} 38. Qh5 {[%emt 0:01:04] [#]} (38. d5 $17) 38... exd4 {[%emt 0:01:13]} (38... Rd5 $1 $19 {and Black stays clearly on top. aiming for ...exd4.} 39. dxe5 Rxe5 40. Qe8+ Kh7) 39. Rxd4 {[%emt 0:00:13]} Rxd4 {[%emt 0:00:34]} 40. Bxd4 $19 {[%emt 0:02:29][%mdl 4096] Endgame KQB-KQB. Black is a pawn up.} Bg5 {[%emt 0:00:19]} 41. Qe2 {[%emt 0:02:34]} Qd5 {[%emt 0:04:00]} 42. Bb6 {[%emt 0:04:27]} Kh7 {[%emt 0:06:41]} 43. Qe1 {[%emt 0:07:13]} (43. Qh5 $17) 43... Bd2 {[%emt 0:04:22]} 44. Qe2 {[%emt 0:01:02]} Bb4 {[%emt 0:03:23]} 45. Qg4 {[%emt 0:03:21]} h5 {[%emt 0:00:44]} 46. Qh4 $2 {[%emt 0:01:24]} (46. Qh3 $17) 46... Qd1+ {[%emt 0:02:14]} 47. Kg2 {[%emt 0:00:03]} Qf3+ {[%emt 0:00:25]} 48. Kg1 {[%emt 0:00:13]} Bc3 {[%emt 0:06:04]} 49. Bd8 {[%emt 0:04:08]} (49. Be3 {is a better defense.}) 49... Be1 {[%emt 0:05:14]} 50. Kf1 $2 {[%emt 0:04:52]} (50. Qg3) 50... Bd2 {[%emt 0:00:06] ( -> ...e3)} 51. Qg3 {[%emt 0:00:50]} Qd3+ {[%emt 0:01:00]} 52. Qxd3 {[%emt 0:00:16]} exd3 {[%emt 0:00:03] KB-KB. Black is a pawn up.} 53. a3 {[%emt 0:00:35]} Kg6 {[%emt 0:00:33]} 54. Be7 {[%emt 0:00:45]} Kf7 {[%emt 0:00:13]} 55. Bc5 {[%emt 0:00:38]} Ke6 {[%emt 0:00:10]} 56. b4 {[%emt 0:00:26]} a4 {[%emt 0:02:00]} 57. b5 {[%emt 0:00:30]} Kd5 {[%emt 0:00:18]} 58. Bf8 {[%emt 0:00:44]} g6 {[%emt 0:00:05] ( -> ...Ba5)} 59. Kg2 {[%emt 0:00:24]} Ba5 {[%emt 0:00:52]} 60. Kf3 {[%emt 0:00:44]} Kc4 {[%emt 0:00:10]} 0-1

[Event "German Bundesliga 2024-25"]
[Site "Germany"]
[Date "2025.01.12"]
[Round "6.4"]
[White "Markus, Robert"]
[Black "Mendonca, Leon Luke"]
[Result "1/2-1/2"]
[Annotator "TA"]
[ECO "C00"]
[WhiteElo "2592"]
[BlackElo "2639"]
[PlyCount "70"]
[EventDate "2024.09.27"]
[EventType "team-tourn"]
[EventCountry "GER"]
[SourceTitle "playchess.com"]
[Source "ChessBase"]
[SourceQuality "1"]
[WhiteTeam "Kirchweyhe"]
[BlackTeam "Hamburg"]
[TimeControl "40/5400+30:1800+30"]

{[%evp 17,70,-4,21,22,29,7,19,19,49,43,41,29,52,28,27,21,30,27,20,29,41,27,43,19,79,88,68,66,107,96,121,117,122,128,127,127,193,80,70,66,67,67,71,63,64,0,0,0,0,0,0,0,6,0,0]} 1. Nf3 {[%emt 1:15:47]} d5 {[%emt 0:02:17]} 2. g3 {[%emt 0:00:26]} Nf6 {[%emt 0:04:13]} 3. Bg2 {[%emt 0:00:39]} c5 {[%emt 0:03:27]} 4. d3 {[%emt 0:01:31]} Nc6 {[%emt 0:01:12]} 5. O-O {[%emt 0:02:41]} e6 {[%emt 0:01:11]} 6. Nbd2 {[%emt 0:00:57]} Be7 {[%emt 0:00:27]} 7. e4 {[%emt 0:00:07]} O-O {[%emt 0:00:06]} 8. Re1 {[%emt 0:00:11]} Qc7 {[%emt 0:05:50]} 9. c3 {[%emt 0:06:08]} b5 {[%emt 0:02:44]} 10. exd5 {[%emt 0:03:56]} exd5 {[%emt 0:01:40]} 11. Nb3 {[%emt 0:02:34]} Bg4 {[%emt 0:06:48]} (11... Qb6 $5) 12. h3 {[%emt 0:08:31]} Bh5 {[%emt 0:02:33]} 13. Be3 {[%emt 0:11:22]} Nd7 {[%emt 0:05:50]} 14. d4 {[%emt 0:06:01]} c4 {[%emt 0:02:41]} 15. Nc1 {[%emt 0:03:08]} Nb6 {[%emt 0:08:07]} 16. Ne2 {[%emt 0:00:18]} Bg6 {[%emt 0:00:36] [#]} 17. Ne5 $1 $36 {[%emt 0:05:43][%mdl 2048] White has some pressure.} Be4 {[%emt 0:07:13]} 18. Nf4 {[%emt 0:02:39]} Bxg2 {[%emt 0:10:10]} 19. Kxg2 {[%emt 0:01:01]} Bd6 {[%emt 0:00:57]} 20. Qf3 {[%emt 0:08:37]} Rad8 {[%emt 0:06:06]} (20... Rae8 $11 {keeps the balance.}) 21. Nxc6 $16 {[%emt 0:03:08]} ({And not} 21. Nxd5 Nxd5 22. Qxd5 Bxe5 (22... Nxe5 23. dxe5 Bxe5 24. Qxb5 $16) 23. Qxb5 Bf6 24. Qxc4 Qd7 $17) 21... Qxc6 {[%emt 0:00:06]} 22. Nh5 {[%emt 0:01:58]} f5 {[%emt 0:21:00] Wards off Qg4} 23. Bf4 {[%emt 0:05:15]} Bxf4 {[%emt 0:02:50]} 24. Nxf4 {[%emt 0:01:56]} Rde8 {[%emt 0:00:07] Prevents Ne6} 25. Re5 {[%emt 0:01:13] White is more active.} Rxe5 {[%emt 0:02:09]} 26. dxe5 {[%emt 0:00:05]} g5 {[%emt 0:01:01]} (26... Re8 $16) 27. Ne2 {[%emt 0:02:12]} (27. Nh5 $18 {is the precise move to win.}) 27... Qe6 {[%emt 0:01:50]} 28. Qe3 {[%emt 0:00:57]} f4 $1 {[%emt 0:00:12]} 29. gxf4 {[%emt 0:00:42]} gxf4 {[%emt 0:00:01]} 30. Nxf4 {[%emt 0:00:08]} Qh6 $1 {[%emt 0:00:14]} 31. Ne2 {[%emt 0:08:04]} (31. e6 $1 $14 Rxf4 (31... Qxf4 32. e7 $14) 32. Rg1) 31... Qxe3 $11 {[%emt 0:00:01]} 32. fxe3 {[%emt 0:00:06]} Re8 {[%emt 0:00:03]} 33. Nd4 {[%emt 0:01:18]} Rxe5 {[%emt 0:00:02]} 34. Nxb5 {[%emt 0:00:57]} Rxe3 {[%emt 0:00:23]} 35. Rf1 {[%emt 0:00:20]} a5 {[%emt 0:00:48]} 1/2-1/2

[Event "German Bundesliga 2024-25"]
[Site "Germany"]
[Date "2025.01.12"]
[Round "6.4"]
[White "Petrov, Martin"]
[Black "Rakotomaharo, Fy Antenaina"]
[Result "0-1"]
[Annotator "TA"]
[ECO "B06"]
[WhiteElo "2550"]
[BlackElo "2429"]
[PlyCount "76"]
[EventDate "2024.09.27"]
[EventType "team-tourn"]
[EventCountry "GER"]
[SourceTitle "playchess.com"]
[Source "ChessBase"]
[SourceQuality "1"]
[WhiteTeam "Deggendorf"]
[BlackTeam "Bad Mergentheim"]
[TimeControl "40/5400+30:1800+30"]

{[%evp 10,76,28,28,60,47,68,60,109,95,110,96,143,109,111,104,112,51,75,83,65,40,43,41,70,-7,-25,-9,-14,-14,-34,-199,-200,-185,-211,-196,-197,-234,-228,-219,-183,-215,-137,-194,-174,-209,-211,-488,-238,-206,-200,-456,-471,-554,-559,-712,-300,-2122,-1881,-5478,-5262,-5075,-2287,-29988,-29989,-29990,-29990,-29990,-29991]} 1. e4 {[%emt 0:00:27]} g6 {[%emt 0:00:22]} 2. d4 {[%emt 0:00:13]} Bg7 {[%emt 0:00:04]} 3. Nc3 {[%emt 0:00:24]} d6 {[%emt 0:00:10]} 4. Be3 {[%emt 0:00:55]} a6 {[%emt 0:00:31]} 5. h4 {[%emt 0:04:56]} h5 {[%emt 0:00:23]} 6. Nh3 {[%emt 0:00:32]} Nc6 {[%emt 0:11:10]} 7. Ng5 {[%emt 0:08:20]} Nh6 {[%emt 0:01:47]} 8. f3 {[%emt 0:00:46]} O-O {[%emt 0:02:53]} (8... d5 $14) 9. Qd2 $16 {[%emt 0:02:20]} e5 {[%emt 0:15:04]} 10. dxe5 {[%emt 0:04:39]} Nxe5 {[%emt 0:03:09]} 11. O-O-O {[%emt 0:02:17]} b5 {[%emt 0:01:11]} 12. g4 {[%emt 0:02:03]} hxg4 {[%emt 0:33:18] [#]} 13. f4 {[%emt 0:01:44]} (13. h5 $1 $16 {[%cal Rh5g6]}) 13... Nf3 $14 {[%emt 0:05:07]} 14. Nxf3 {[%emt 0:03:39]} gxf3 {[%emt 0:00:03]} 15. f5 {[%emt 0:00:42]} Ng4 {[%emt 0:00:35]} 16. Bg5 {[%emt 0:00:24]} Qe8 {[%emt 0:00:13]} 17. h5 {[%emt 0:47:09]} (17. Qf4 $14 gxf5 (17... Nf2 18. f6 $15) 18. exf5 (18. Qxf3 fxe4 19. Nxe4 Qe5 $15)) 17... gxf5 $11 {[%emt 0:01:28]} 18. exf5 {[%emt 0:00:58]} Bxf5 {[%emt 0:09:52]} 19. Re1 {[%emt 0:00:24]} (19. Qf4 Qe6 20. Qxf3 b4 $17) 19... Qc6 {[%emt 0:02:14]} 20. Nd5 $2 {[%emt 0:01:20]} ({White must play} 20. Bh3 $1 $15 Rfe8 21. Bxg4 Bxg4 22. h6) 20... Rfe8 $19 {[%emt 0:00:14]} 21. Ne7+ {[%emt 0:02:41]} Rxe7 $1 {[%emt 0:00:05]} 22. Rxe7 {[%emt 0:00:02]} f2 {[%emt 0:02:18]} 23. Rh4 {[%emt 0:00:26]} Re8 {[%emt 0:00:49]} 24. Rxe8+ {[%emt 0:05:33]} Qxe8 {[%emt 0:00:06]} 25. Qe2 {[%emt 0:00:02]} Qe5 {[%emt 0:05:03]} 26. c3 {[%emt 0:05:25]} (26. Qxe5 $17 {was worth a try.} Bxe5 (26... dxe5 27. h6 $17) 27. Kd2) 26... Be6 $19 {[%emt 0:02:21]} 27. Bd2 {[%emt 0:01:04]} Qg3 {[%emt 0:01:56]} 28. Rh1 $2 {[%emt 0:03:49]} (28. Rxg4 {was the only defense.} Qxg4 (28... Bxg4 $2 29. Qe8+ Kh7 30. Qxf7 $19) 29. Qxg4 Bxg4 30. Be3 Bxh5 31. Bxf2) 28... Be5 {[%emt 0:01:29]} (28... Bxa2 29. h6 Be5 30. Qe4 $11) (28... Bh6 $142 29. Bxh6 Nxh6) 29. Qe4 $19 {[%emt 0:00:36]} Nh2 {[%emt 0:00:29]} (29... Bxa2 30. Qa8+ Kh7 31. Qe4+ Kh8 32. Qa8+ Kh7 33. Qe4+ Kh8 34. Qa8+ Kg7 35. h6+ Kh7 36. Qe4+ Kh8 (36... f5 37. Qxf5+ Kh8 38. h7 Nh2 39. Qf8+) 37. Qa8+ Kh7 38. Qe4+ Kh8 39. Qa8+ Kh7 $11) 30. Bd3 $2 {[%emt 0:00:52]} (30. h6) 30... f5 $19 {[%emt 0:00:29]} (30... Bxa2 $2 {is the wrong capture.} 31. Bh6 Qg1+ 32. Kd2 $18) 31. Qa8+ {[%emt 0:00:05] [#]} Kf7 $1 {[%emt 0:00:04]} 32. Kc2 {[%emt 0:00:47]} Bc4 {[%emt 0:00:51]} (32... Bxa2 33. Qc8 $11) (32... Nf3 $142 {...Qg2 would now be deadly.} 33. Be2 Nxd2) 33. Bxf5 $2 {[%emt 0:00:52]} (33. Bxc4+ bxc4 34. Qd5+ Kf6 35. Qxc4) 33... f1=Q $19 {[%emt 0:00:34]} (33... f1=R $2 34. Bg6+ (34. Rxf1 $2 Nxf1 35. Bg6+ Kg7 $19) 34... Kg7 35. Qe8 $17) 34. Rxf1 {[%emt 0:00:19]} Nxf1 {[%emt 0:00:29]} 35. Bg6+ {[%emt 0:00:39]} Kg7 {[%emt 0:00:22]} 36. b3 {[%emt 0:00:35]} Nxd2 {[%emt 0:00:13]} 37. bxc4 {[%emt 0:00:11]} Qxc3+ {[%emt 0:00:10]} 38. Kd1 {[%emt 0:00:02]} Nxc4 {[%emt 0:00:22]} 0-1

[Event "German Bundesliga 2024-25"]
[Site "Germany"]
[Date "2025.01.12"]
[Round "6.5"]
[White "Huschenbeth, Niclas"]
[Black "Stevic, Hrvoje"]
[Result "1/2-1/2"]
[Annotator "TA"]
[ECO "C83"]
[WhiteElo "2594"]
[BlackElo "2548"]
[PlyCount "89"]
[EventDate "2024.09.27"]
[EventType "team-tourn"]
[EventCountry "GER"]
[SourceTitle "playchess.com"]
[Source "ChessBase"]
[SourceQuality "1"]
[WhiteTeam "Hamburg"]
[BlackTeam "Kirchweyhe"]
[TimeControl "40/5400+30:1800+30"]

{[%evp 19,89,25,22,-4,-22,0,-16,-19,-13,-8,-14,-27,0,0,0,0,0,0,0,0,3,9,2,6,19,18,25,17,46,29,29,25,81,91,116,103,126,120,131,65,64,47,46,50,77,68,75,73,93,66,58,76,69,65,61,63,62,61,105,7,5,5,5,0,0,0,0,0,0,0,0,0]} 1. e4 {[%emt 1:15:43]} e5 {[%emt 0:00:11]} 2. Nf3 {[%emt 0:00:05]} Nc6 {[%emt 0:00:07]} 3. Bb5 {[%emt 0:00:05]} a6 {[%emt 0:01:02]} 4. Ba4 {[%emt 0:00:06]} Nf6 {[%emt 0:00:55][%cal Bg8f6,Bf6e4,Be4c5][%mdl 32]} 5. O-O {[%emt 0:00:12]} Nxe4 {[%emt 0:00:25]} 6. d4 {[%emt 0:00:24]} b5 {[%emt 0:00:09]} 7. Bb3 {[%emt 0:00:04]} d5 {[%emt 0:00:08]} 8. dxe5 {[%emt 0:00:05]} Be6 {[%emt 0:00:06]} 9. c3 {[%emt 0:00:15]} Be7 {[%emt 0:00:18]} 10. Nbd2 {[%emt 0:00:17]} Nc5 {[%emt 0:00:17]} 11. Nd4 {[%emt 0:00:20]} Nxe5 {[%emt 0:02:28]} 12. Bc2 {[%emt 0:00:16]} Qd6 {[%emt 0:00:29]} 13. N2b3 {[%emt 0:00:15]} Bg4 {[%emt 0:01:04]} 14. f3 {[%emt 0:00:16]} Nxb3 $1 {[%emt 0:00:15]} 15. Nxb3 {[%emt 0:00:23]} Bd7 {[%emt 0:14:52]} 16. Be3 $1 {[%emt 0:05:17]} O-O {[%emt 0:01:10]} 17. Bc5 {[%emt 0:07:28]} Qe6 {[%emt 0:05:28]} 18. Bxe7 {[%emt 0:24:59]} Qxe7 {[%emt 0:00:21]} 19. Qxd5 {[%emt 0:00:19]} Bc6 $132 {[%emt 0:02:29][%mdl 2048] Black puts up resistance} 20. Qc5 {[%emt 0:05:16]} Qxc5+ {[%emt 0:06:29]} (20... Qg5 {looks sharper.} 21. Kh1 Rfd8 22. Rae1 Rd5) 21. Nxc5 {[%emt 0:00:05]} a5 {[%emt 0:04:47]} 22. a4 {[%emt 0:05:38]} bxa4 {[%emt 0:46:45]} 23. Bxa4 {[%emt 0:00:57]} Rfb8 {[%emt 0:00:54]} 24. Rfe1 {[%emt 0:07:04]} Bxa4 {[%emt 0:00:09]} 25. Rxa4 {[%emt 0:00:26]} Ng6 {[%emt 0:08:12]} (25... f6 $11) 26. b3 $16 {[%emt 0:04:45]} h6 {[%emt 0:03:06]} 27. Rea1 {[%emt 0:01:42] White has more active pieces.} Rd8 {[%emt 0:00:55] [#]} 28. b4 $1 {[%emt 0:04:15]} ({Don't take} 28. Rxa5 Rxa5 29. Rxa5 Rd2 $14) 28... Nf4 {[%emt 0:00:07]} 29. bxa5 {[%emt 0:04:40]} (29. Rxa5 $16 Rab8 30. Kf2) 29... Ne2+ $14 {[%emt 0:00:04]} 30. Kf2 {[%emt 0:05:34]} Nxc3 {[%emt 0:00:01]} 31. Rc4 {[%emt 0:00:07]} Nb5 {[%emt 0:00:19]} 32. a6 {[%emt 0:05:22]} Rd2+ {[%emt 0:00:13]} 33. Kg3 {[%emt 0:00:15]} Ra7 {[%emt 0:02:16]} 34. Rb4 {[%emt 0:14:10]} c6 {[%emt 0:00:05]} 35. Rc4 {[%emt 0:02:41]} Nd6 {[%emt 0:00:37] Dodges Ne4} 36. Rc3 {[%emt 0:00:25]} Nb5 {[%emt 0:00:41]} 37. Rcc1 {[%emt 0:02:32]} Rd5 {[%emt 0:00:40]} 38. Ne4 {[%emt 0:01:25]} Nd4 {[%emt 0:00:03] [#] and ...Ne2+ should not be overlooked} 39. Rcb1 {[%emt 0:00:29]} (39. Rc4 $1 $16) 39... Rb5 $11 {[%emt 0:00:52]} 40. Rxb5 {[%emt 0:00:34]} cxb5 41. Rd1 {[%emt 0:11:38]} Ne6 {[%emt 0:04:46]} 42. Rd6 {[%emt 0:00:39]} b4 {[%emt 0:00:08]} 43. Rb6 {[%emt 0:01:06]} b3 {[%emt 0:00:11]} 44. Nd6 {[%emt 0:06:55][%cal Od6c8] Hoping for Nc8!.} Nc5 {[%emt 0:02:37]} 45. Ne4 {[%emt 0:04:01]} 1/2-1/2

[Event "German Bundesliga 2024-25"]
[Site "Germany"]
[Date "2025.01.12"]
[Round "6.5"]
[White "Van Foreest, Lucas"]
[Black "Van Wely, Loek"]
[Result "1/2-1/2"]
[Annotator "TA"]
[ECO "D36"]
[WhiteElo "2520"]
[BlackElo "2608"]
[PlyCount "129"]
[EventDate "2024.09.27"]
[EventType "team-tourn"]
[EventCountry "GER"]
[SourceTitle "playchess.com"]
[Source "ChessBase"]
[SourceQuality "1"]
[WhiteTeam "Werder Bremen"]
[BlackTeam "SG Solingen"]
[TimeControl "40/5400+30:1800+30"]

{[%evp 23,129,3,8,5,16,14,23,24,20,0,0,0,0,0,0,0,0,0,0,0,0,0,0,0,0,0,0,0,-4,-5,-6,-9,0,-18,-15,-20,0,-18,0,-17,-10,-37,-16,-14,-14,-35,-32,-46,-39,-61,-61,-61,-49,-41,-41,-61,-61,-61,-61,-61,-61,-62,-62,-62,-61,-61,-61,-61,-61,-61,-61,-86,-86,-86,-86,-86,-86,-86,-86,-86,-86,-93,-100,-101,-86,-86,-86,-86,-86,-86,-86,-86,-86,-86,-86,-87,0,0,0,0,0,0,0,0,0,0,0,0]} 1. d4 {[%emt 0:00:12]} Nf6 {[%emt 0:02:21]} 2. c4 {[%emt 0:00:05]} e6 {[%emt 0:00:36]} 3. Nc3 {[%emt 0:00:34]} d5 {[%emt 0:01:16]} 4. Bg5 {[%emt 0:01:59]} Be7 {[%emt 0:01:23]} 5. cxd5 {[%emt 0:00:18]} exd5 {[%emt 0:01:49]} 6. e3 {[%emt 0:00:07]} h6 {[%emt 0:01:36]} 7. Bh4 {[%emt 0:00:38]} O-O {[%emt 0:01:04]} 8. Bd3 {[%emt 0:00:07]} c6 {[%emt 0:00:48]} 9. Qc2 {[%emt 0:04:55]} Re8 {[%emt 0:03:12]} 10. Nf3 {[%emt 0:00:23]} Nbd7 {[%emt 0:05:27]} 11. O-O {[%emt 0:04:05]} Ne4 {[%emt 0:01:00]} 12. Bxe7 {[%emt 0:00:18]} Qxe7 {[%emt 0:00:10]} 13. Rfe1 {[%emt 0:07:12]} Ndf6 {[%emt 0:07:51]} 14. Ne5 {[%emt 0:01:59]} Bf5 {[%emt 0:04:30]} 15. f3 {[%emt 0:15:30] White has an edge.} Nxc3 {[%emt 0:00:17]} 16. Bxf5 {[%emt 0:00:05]} Nb5 {[%emt 0:00:17]} 17. Qd2 {[%emt 0:02:24]} Nd6 {[%emt 0:07:27]} 18. Bd3 {[%emt 0:15:48]} Nd7 {[%emt 0:13:04]} 19. Nxd7 {[%emt 0:00:37]} Qxd7 {[%emt 0:00:06]} 20. e4 {[%emt 0:16:07]} dxe4 {[%emt 0:02:35]} 21. fxe4 {[%emt 0:00:03]} c5 {[%emt 0:09:40]} 22. e5 {[%emt 0:06:54]} Nf5 {[%emt 0:01:27]} 23. Bxf5 {[%emt 0:00:35]} Qxf5 {[%emt 0:00:07]} 24. dxc5 {[%emt 0:00:50]} Rxe5 {[%emt 0:10:39]} 25. Rxe5 {[%emt 0:00:13]} Qxe5 $11 {[%emt 0:00:05][%mdl 4096] Endgame. KQR-KQR} 26. Rc1 {[%emt 0:00:55]} a5 {[%emt 0:00:54]} 27. Qc3 {[%emt 0:01:50]} Qe6 {[%emt 0:06:44]} 28. Qb3 {[%emt 0:03:43]} Qe7 {[%emt 0:04:10]} 29. Qc3 {[%emt 0:00:46]} Qe6 {[%emt 0:00:42]} 30. Qb3 {[%emt 0:00:02]} Qe7 {[%emt 0:01:26]} 31. Qc3 {[%emt 0:00:03]} Rc8 {[%emt 0:01:43]} 32. b3 {[%emt 0:01:15][%cal Oa2a3]} Qe2 {[%emt 0:04:42]} 33. a3 {[%emt 0:07:31]} Re8 {[%emt 0:00:59]} 34. Rf1 {[%emt 0:01:28][%cal Oc3f3]} Re3 {[%emt 0:02:39]} 35. Qxa5 {[%emt 0:01:24] [#] Qa8+ is the strong threat.} Rxb3 {[%emt 0:00:11]} 36. Qc7 {[%emt 0:00:38]} Qe3+ {[%emt 0:03:15]} (36... Rxa3 37. Qc8+ (37. Rxf7 $2 Ra1+) (37. Qxf7+ Kh7 $11) 37... Kh7 38. Qf5+ Kh8 39. Qc8+ Kh7 40. Qf5+ Kh8 41. Qc8+ Kh7 $11) 37. Kh1 {[%emt 0:00:03]} Qe6 {[%emt 0:00:16]} ({Reject} 37... Rxa3 38. Qxf7+ (38. Rxf7 $2 {gets mated.} Qe1+) 38... Kh7 39. Qxb7 $11) 38. h3 {[%emt 0:00:09]} Qd5 {[%emt 0:02:09]} 39. Qc8+ {[%emt 0:00:47]} Kh7 {[%emt 0:00:05]} 40. Qf5+ {[%emt 0:01:53]} Qxf5 {[%emt 0:00:07]} 41. Rxf5 $15 {[%emt 0:30:02] KR-KR} Kg6 {[%emt 0:31:01]} ({Don't play} 41... Rxa3 42. Rxf7 Rc3 43. Rxb7 $11) 42. Rf4 {[%emt 0:01:01]} Rxa3 {[%emt 0:00:33]} 43. Rb4 {[%emt 0:00:03]} Ra5 {[%emt 0:00:35]} 44. Rb6+ {[%emt 0:00:02]} f6 {[%emt 0:00:08]} 45. Rxb7 {[%emt 0:00:01]} Rxc5 {[%emt 0:00:06]} 46. Kh2 {[%emt 0:00:03]} h5 {[%emt 0:00:47]} 47. Ra7 {[%emt 0:00:08]} h4 {[%emt 0:00:22]} 48. Rb7 {[%emt 0:00:10]} Kh6 {[%emt 0:00:15]} 49. Ra7 {[%emt 0:00:06]} g5 {[%emt 0:00:09]} 50. Ra6 {[%emt 0:00:12]} Kg6 {[%emt 0:00:08]} 51. Rb6 {[%emt 0:00:06]} Kf5 {[%emt 0:00:06]} 52. Ra6 {[%emt 0:00:05]} Ke5 {[%emt 0:00:05]} 53. Rb6 {[%emt 0:00:29]} f5 {[%emt 0:00:07]} 54. Rg6 {[%emt 0:06:07] [#]} Kf4 $1 {[%emt 0:00:10]} 55. Rg8 {[%emt 0:00:27]} Rc2 {[%emt 0:00:31]} 56. Rf8 {[%emt 0:02:21]} Rf2 {[%emt 0:03:36]} 57. Ra8 {[%emt 0:01:42]} Re2 {[%emt 0:00:00]} 58. Rf8 {[%emt 0:00:00]} Re5 {[%emt 0:00:00]} 59. Rg8 {[%emt 0:00:00]} g4 {[%emt 0:00:00]} (59... Rb5 $17) 60. hxg4 $11 {[%emt 0:00:00] The position is equal.} fxg4 {[%emt 0:00:00]} 61. Rh8 {[%emt 0:00:00]} h3 {[%emt 0:00:00]} 62. Rf8+ {[%emt 0:00:00]} Rf5 {[%emt 0:00:00]} 63. Rxf5+ {[%emt 0:00:00]} Kxf5 {[%emt 0:00:00]} 64. gxh3 {[%emt 0:00:00]} g3+ {[%emt 0:00:00]} 65. Kg2 {[%emt 0:00:40] Weighted Error Value: White=0.04 (flawless) /Black=0.05 (flawless) .  Mistake:       	---       	Black=1      Inaccurate:     	White=1     	---        OK:         	White=26    	Black=13     Best:        	White=2     	Black=7      Strong:       	---       	Black=1} 1/2-1/2